bitfinex-derivatives/quotes_SOLF0:USTF0_20250124
["timestamp","ask_amount","ask_price","bid_price","bid_amount"]
[1737696150343,0.02938814,259.91,259.85,0.02953341]
[1737696150939,0.02938814,259.91,259.88,3.8484]
[1737696151449,0.02938814,259.91,259.85,0.02953341]
[1737696151651,0.02938814,259.91,259.86,3.8486]
[1737696151842,0.02938814,259.91,259.85,0.02953341]
[1737696153447,3.8484,259.89,259.85,0.02953341]
[1737696153653,0.02938814,259.91,259.85,0.02953341]
[1737696153848,0.02938814,259.91,259.9,3.8482]
[1737696154253,0.02938814,259.91,259.85,0.02953341]
[1737696155951,3.8487,259.87,259.85,0.02953341]
[1737696156851,0.02938814,259.91,259.85,0.02953341]
[1737696157150,0.02938814,259.91,259.86,3.8486]
[1737696158252,0.02938814,259.91,259.85,0.02953341]
[1737696158450,0.02938814,259.91,259.85,3.87843341]
[1737696159352,0.02938814,259.91,259.87,3.8486]
[1737696159656,0.02938814,259.91,259.85,0.02953341]
[1737696159849,0.02938814,259.91,259.89,3.8483]
[1737696160152,0.02938814,259.91,259.85,0.02953341]
[1737696161155,0.02938814,259.91,259.86,3.8487]
[1737696161354,0.02938814,259.91,259.85,0.02953341]
[1737696162452,3.8486,259.87,259.85,0.02953341]
[1737696162649,0.02938814,259.91,259.74,1.7461]
[1737696162950,14.77556045,259.89,259.73,154.21970453]
[1737696163356,14.77556045,259.89,259.73,96.91323365]
[1737696163952,3.8498,259.79,259.78,0.02524617]
[1737696165451,3.8505,259.75,259.63,96.91323365]
[1737696165655,14.77556045,259.84,259.63,96.91323365]
[1737696165852,14.77556045,259.84,259.71,3.8509]
[1737696166053,14.77556045,259.84,259.61,14.77556045]
[1737696166452,3.8504,259.75,259.67,3.8515]
[1737696166647,3.87669472,259.75,259.7,0.02910852]
[1737696167058,0.02629472,259.75,259.7,0.02910852]
[1737696167369,3.8509,259.72,259.7,0.02910852]
[1737696169862,3.87679472,259.75,259.7,0.02910852]
[1737696170270,0.02629472,259.75,259.7,0.02910852]
[1737696172062,14.77556045,259.74,259.49,4.3359]
[1737696172960,3.8517,259.67,259.6,3.8525]
[1737696173264,0.02732282,259.64,259.59,0.02479746]
[1737696173462,3.8533,259.56,259.48,3.8543]
[1737696173762,14.77556045,259.59,259.44,4.9130616]
[1737696174062,0.02690713,259.54,259.49,0.02433785]
[1737696174365,3.8541,259.5,259.41,1.7807]
[1737696174562,14.77556045,259.54,259.41,1.7807]
[1737696174868,14.77556045,259.54,259.46,3.8546]
[1737696175063,14.77556045,259.61,259.41,1.7807]
[1737696175464,0.02732413,259.54,259.48,0.02734417]
[1737696176466,0.02732413,259.54,259.48,3.88164417]
[1737696176862,0.02732413,259.54,259.48,0.02734417]
[1737696177166,3.8542,259.5,259.48,0.02734417]
[1737696177568,1.2116,259.53,259.48,0.02734417]
[1737696178162,5.0654,259.53,259.48,0.02734417]
[1737696178467,0.02732413,259.54,259.48,0.02734417]
[1737696178668,0.02732413,259.54,259.52,3.8538]
[1737696181263,0.02732413,259.54,259.48,0.02734417]
[1737696181865,3.8542,259.5,259.43,3.8551]
[1737696182262,3.8542,259.5,259.35,1.3159]
[1737696182570,14.77556045,259.61,259.35,16.09146045]
[1737696183068,0.02905871,259.51,259.49,3.8542]
[1737696183269,14.77556045,259.61,259.35,16.09146045]
[1737696183469,0.02600805,259.53,259.47,0.02692339]
[1737696183664,0.02600805,259.53,259.51,3.8538]
[1737696185767,11.55,259.86,259.47,0.02692339]
[1737696185967,1.2722,259.73,259.5,14.77556045]
[1737696186168,1.2722,259.73,259.51,1.3371]
[1737696186474,5.5082,259.68,259.51,1.3371]
[1737696186668,1.6567,259.68,259.51,1.3371]
[1737696187069,0.02572189,259.62,259.57,0.02932956]
[1737696187977,0.02572189,259.62,259.6,3.8525]
[1737696188371,0.02572189,259.62,259.57,0.02932956]
[1737696189174,3.8528,259.59,259.57,0.02932956]
[1737696189375,0.02572189,259.62,259.57,0.02932956]
[1737696190173,0.02572189,259.62,259.6,3.8525]
[1737696191175,0.02572189,259.62,259.57,0.02932956]
[1737696191375,0.02572189,259.62,259.59,3.8527]
[1737696191676,0.02572189,259.62,259.57,0.02932956]
[1737696192877,3.87802189,259.62,259.57,0.02932956]
[1737696193379,0.02572189,259.62,259.58,3.8529]
[1737696193570,0.02572189,259.62,259.57,0.02932956]
[1737696194575,0.02572189,259.62,259.59,3.8528]
[1737696195079,0.02572189,259.62,259.57,0.02932956]
[1737696195275,0.02572189,259.62,259.6,3.8526]
[1737696196377,0.02572189,259.62,259.57,0.02932956]
[1737696197872,2.189e-05,259.62,259.57,0.02932956]
[1737696198380,2.189e-05,259.62,259.61,3.8525]
[1737696199280,2.189e-05,259.62,259.57,0.02932956]
[1737696200880,3.8526,259.61,259.57,0.02932956]
[1737696201080,2.189e-05,259.62,259.57,0.02932956]
[1737696201581,2.189e-05,259.62,259.41,1.779]
[1737696201778,2.9667,259.62,259.46,3.8546]
[1737696201978,3.8532,259.57,259.43,3.60200628]
[1737696202174,14.77556045,259.58,259.43,3.60200628]
[1737696202480,1.2392,259.56,259.43,3.60200628]
[1737696202683,0.0275955,259.53,259.48,0.0276852]
[1737696203783,3.8539,259.52,259.48,0.0276852]
[1737696203983,14.77556045,259.52,259.48,0.0276852]
[1737696204283,14.77556045,259.52,259.39,3.8557]
[1737696204884,3.8544,259.49,259.39,3.8557]
[1737696205182,14.77556045,259.52,259.4,3.8555]
[1737696205486,0.02722142,259.47,259.41,0.02919697]
[1737696205781,0.02722142,259.47,259.44,3.8549]
[1737696205983,0.02722142,259.47,259.41,0.02919697]
[1737696207181,3.8548,259.46,259.41,0.02919697]
[1737696207374,14.80278187,259.47,259.41,0.02919697]
[1737696207776,14.80278187,259.47,259.41,9.697e-05]
[1737696208078,3.8553,259.43,259.41,9.697e-05]
[1737696208284,14.77556045,259.42,259.25,2.8462]
[1737696208480,14.77556045,259.42,259.31,3.8569]
[1737696208678,14.77556045,259.42,259.25,2.8462]
[1737696208884,1.7182,259.46,259.25,2.8462]
[1737696209181,3.8549,259.45,259.37,3.8559]
[1737696209382,1.7182,259.46,259.25,2.8462]
[1737696209588,3.88369611,259.44,259.38,0.02169387]
[1737696209886,0.02742077,259.44,259.38,0.02169387]
[1737696210188,1.308,259.43,259.38,0.02169387]
[1737696210590,3.8557,259.4,259.32,3.8567]
[1737696210794,14.77556045,259.37,259.22,96.91323365]
[1737696211688,14.77556045,259.37,259.21,92.7972061]
[1737696211890,0.02787544,259.32,259.21,92.7972061]
[1737696212501,0.02787544,259.32,259.3,3.8571]
[1737696212700,7.544e-05,259.32,259.3,3.8571]
[1737696213599,7.544e-05,259.32,259.31,2.9283]
[1737696214894,7.544e-05,259.32,259.29,0.02480211]
[1737696215893,3.85687544,259.32,259.29,0.02480211]
[1737696216098,7.544e-05,259.32,259.29,0.02480211]
[1737696216499,7.544e-05,259.32,259.3,3.857]
[1737696217800,1.2861,259.47,259.29,0.02480211]
[1737696218000,1.2861,259.47,259.41,3.8554]
[1737696218202,1.2861,259.47,259.29,1.2574]
[1737696218795,3.8538,259.53,259.34,14.77556045]
[1737696219001,2.979,259.67,259.46,14.77556045]
[1737696219397,0.02460298,259.59,259.55,3.8534]
[1737696219797,0.02460298,259.59,259.54,0.02708869]
[1737696220603,14.80016343,259.59,259.54,0.02708869]
[1737696220802,14.80016343,259.59,259.36,2.8666]
[1737696220998,14.77556045,259.59,259.36,2.8666]
[1737696221202,3.8538,259.53,259.42,3.8552]
[1737696221506,14.77556045,259.59,259.36,2.8666]
[1737696221806,14.77556045,259.59,259.48,3.8543]
[1737696222100,2.979,259.67,259.36,2.8666]
[1737696222101,14.77556045,259.64,259.36,2.8666]
[1737696222306,0.02628887,259.56,259.45,14.77556045]
[1737696222899,0.02628887,259.56,259.52,3.8538]
[1737696223302,0.02628887,259.56,259.39,14.77556045]
[1737696223606,14.77556045,259.64,259.39,14.77556045]
[1737696223806,0.02849237,259.5,259.39,14.77556045]
[1737696224002,0.02849237,259.5,259.48,3.8543]
[1737696224203,0.02849237,259.5,259.39,14.77556045]
[1737696224411,0.02849237,259.5,259.36,2.8666]
[1737696225306,0.02849237,259.5,259.46,3.8547]
[1737696225704,0.02849237,259.5,259.44,3.855]
[1737696225906,0.02849237,259.5,259.36,2.8666]
[1737696226609,3.8543,259.49,259.41,3.8554]
[1737696228005,0.02849237,259.5,259.36,2.8666]
[1737696228714,0.02849237,259.5,259.45,3.8548]
[1737696229216,0.02849237,259.5,259.48,3.8544]
[1737696230310,0.02849237,259.5,259.39,14.77556045]
[1737696231408,9.237e-05,259.5,259.48,3.8544]
[1737696232116,1.2182,259.67,259.49,14.77556045]
[1737696232412,1.2182,259.67,259.5,2.9015]
[1737696232805,1.2182,259.67,259.55,3.8534]
[1737696233014,1.2182,259.67,259.5,2.9015]
[1737696233314,0.02831175,259.61,259.56,0.02656718]
[1737696234107,0.02831175,259.61,259.59,3.8526]
[1737696234306,0.02831175,259.61,259.56,0.02656718]
[1737696236117,3.8529,259.59,259.56,0.02656718]
[1737696236318,0.02831175,259.61,259.38,14.77556045]
[1737696236511,1.7115,259.63,259.38,14.77556045]
[1737696236919,3.8527,259.6,259.52,3.8537]
[1737696237119,1.7115,259.63,259.43,14.77556045]
[1737696237718,0.02446544,259.56,259.46,3.8546]
[1737696237919,0.02446544,259.56,259.43,14.77556045]
[1737696238419,0.02446544,259.56,259.54,3.8534]
[1737696239123,1.3384,259.69,259.63,3.8521]
[1737696239321,1.3384,259.69,259.49,1.2527]
[1737696239819,5.1897,259.69,259.5,1.315]
[1737696240019,1.3384,259.69,259.5,1.315]
[1737696240318,0.02937803,259.62,259.57,0.02714246]
[1737696241219,3.8525,259.61,259.57,0.02714246]
[1737696241420,0.02937803,259.62,259.57,0.02714246]
[1737696241822,3.8525,259.61,259.57,0.02714246]
[1737696242022,0.02937803,259.62,259.57,0.02714246]
[1737696242524,3.8529,259.59,259.57,0.02714246]
[1737696243019,14.77556045,259.58,259.41,3.63632043]
[1737696243420,14.77556045,259.58,259.41,7.49172043]
[1737696243625,3.8544,259.49,259.41,3.63632043]
[1737696243925,14.77556045,259.58,259.41,7.49172043]
[1737696244226,0.02689681,259.48,259.41,3.63632043]
[1737696245222,0.02689681,259.48,259.42,3.8553]
[1737696246220,0.02689681,259.48,259.41,3.63632043]
[1737696246221,0.02689681,259.48,259.34,1.7717]
[1737696246426,0.02689681,259.48,259.38,3.8558]
[1737696246918,3.8556,259.4,259.32,60.16475297]
[1737696247118,14.77556045,259.43,259.23,14.77556045]
[1737696247328,14.77556045,259.38,259.17,17.79796045]
[1737696247728,0.02504457,259.3,259.17,17.79796045]
[1737696249228,0.02504457,259.3,259.26,3.8576]
[1737696249422,0.02504457,259.3,259.17,17.79796045]
[1737696249627,4.457e-05,259.3,259.28,3.8573]
[1737696252722,3.0429,259.47,259.4,3.8555]
[1737696252922,3.0429,259.47,259.29,1.342]
[1737696253122,3.8541,259.51,259.33,14.77556045]
[1737696253322,3.8541,259.51,259.34,2.8755]
[1737696253524,3.0023,259.57,259.34,2.8755]
[1737696253727,3.8537,259.53,259.34,2.8755]
[1737696254031,0.02725247,259.48,259.43,0.02507949]
[1737696255032,14.80281292,259.48,259.15,29.43828129]
[1737696255227,14.77556045,259.43,259.23,2.9542]
[1737696255426,3.0106,259.42,259.23,2.9542]
[1737696256032,0.02541305,259.35,259.23,2.9542]
[1737696257031,0.02541305,259.35,259.31,3.8569]
[1737696257231,0.02541305,259.35,259.23,2.9542]
[1737696257432,3.8565,259.34,259.27,3.8575]
[1737696258028,0.02541305,259.35,259.23,2.9542]
[1737696258829,0.02541305,259.35,259.27,3.8574]
[1737696259034,0.02541305,259.35,259.17,1.342]
[1737696259233,24.12756003,259.4,259.17,1.342]
[1737696259434,0.02585764,259.29,259.17,1.342]
[1737696259934,0.02585764,259.29,259.23,3.8581]
[1737696260227,0.02585764,259.29,259.17,1.342]
[1737696260533,0.02585764,259.29,259.27,3.8575]
[1737696261034,0.02585764,259.29,259.23,3.8581]
[1737696261232,3.8571,259.3,259.23,3.8581]
[1737696261437,0.02566746,259.29,259.11,1.3255]
[1737696261630,3.8566,259.34,259.11,1.3255]
[1737696261831,8.454e-05,259.23,259.16,24.12756003]
[1737696262232,8.454e-05,259.23,259.21,3.8584]
[1737696266339,8.454e-05,259.23,259.22,1.2405]
[1737696268342,5.1883,259.39,259.32,3.8568]
[1737696268841,1.3325,259.39,259.2,24.12756003]
[1737696269440,0.02535276,259.32,259.28,3.8573]
[1737696269637,0.02535276,259.32,259.27,0.02538454]
[1737696272347,3.857,259.31,259.27,0.02538454]
[1737696272645,0.02535276,259.32,259.27,0.02538454]
[1737696273441,3.88215276,259.32,259.27,0.02538454]
[1737696273945,0.02535276,259.32,259.27,0.02538454]
[1737696275141,0.02535276,259.32,259.29,3.8572]
[1737696275944,0.02535276,259.32,259.27,0.02538454]
[1737696276553,0.02535276,259.32,259.3,3.8571]
[1737696276945,24.12756003,259.48,259.3,3.8571]
[1737696277150,24.12756003,259.48,259.33,3.8566]
[1737696277452,24.12756003,259.43,259.2,24.12756003]
[1737696277653,3.8562,259.37,259.29,3.8572]
[1737696277952,1.3247,259.42,259.2,24.12756003]
[1737696278146,3.8565,259.35,259.3,0.02723588]
[1737696278353,0.02897005,259.36,259.3,0.02723588]
[1737696279151,3.8565,259.35,259.3,0.02723588]
[1737696279352,0.02897005,259.36,259.26,3.8577]
[1737696279548,0.02897005,259.36,259.15,24.12756003]
[1737696279749,17.78425946,259.37,259.26,3.8576]
[1737696279951,17.78425946,259.37,259.14,96.91323365]
[1737696280351,17.78425946,259.37,259.13,16.55965946]
[1737696280551,0.02699003,259.28,259.23,0.02350142]
[1737696282249,9.003e-05,259.28,259.27,3.8575]
[1737696285949,9.003e-05,259.28,259.23,0.02350142]
[1737696286651,9.003e-05,259.28,259.26,3.8577]
[1737696290156,9.003e-05,259.28,259.24,3.8579]
[1737696290651,9.003e-05,259.28,259.23,0.02350142]
[1737696290855,9.003e-05,259.28,259.25,3.8578]
[1737696292356,9.003e-05,259.28,259.26,3.8577]
[1737696292558,9.003e-05,259.28,259.23,0.02350142]
[1737696293556,9.003e-05,259.28,259.25,3.8577]
[1737696294354,9.003e-05,259.28,259.23,0.02350142]
[1737696294355,9.003e-05,259.28,259.27,3.8575]
[1737696297761,1.3247,259.42,259.36,3.8562]
[1737696298863,1.351554,259.42,259.37,3.856]
[1737696299163,0.026854,259.42,259.36,0.02491578]
[1737696300663,3.8557,259.4,259.36,0.02491578]
[1737696300964,0.026854,259.42,259.36,0.02491578]
[1737696301165,0.026854,259.42,259.39,3.8557]
[1737696301660,0.026854,259.42,259.4,3.8556]
[1737696301862,0.026854,259.42,259.36,0.02491578]
[1737696302666,0.026854,259.42,259.38,3.8558]
[1737696302868,0.026854,259.42,259.36,0.02491578]
[1737696303164,0.026854,259.42,259.37,3.856]
[1737696303463,0.026854,259.42,259.36,0.02491578]
[1737696303664,9.27706628,259.41,259.36,0.02491578]
[1737696303863,3.8562,259.36,259.3,3.8571]
[1737696304165,3.8562,259.36,259.25,96.91323365]
[1737696304967,9.27706628,259.41,259.24,29.51668533]
[1737696305168,0.02709714,259.33,259.28,0.02557567]
[1737696305462,9.714e-05,259.33,259.31,9.27706628]
[1737696305665,9.714e-05,259.33,259.31,13.13396628]
[1737696305858,9.714e-05,259.33,259.31,9.27706628]
[1737696306258,9.714e-05,259.33,259.28,0.02557567]
[1737696306662,9.714e-05,259.33,259.31,3.8569]
[1737696307867,1.2652,259.47,259.35,3.8563]
[1737696308068,1.2652,259.47,259.37,9.27706628]
[1737696308368,1.6561,259.54,259.46,3.8547]
[1737696308667,1.6561,259.54,259.41,9.27706628]
[1737696309067,0.02601132,259.5,259.46,3.8546]
[1737696309268,0.02601132,259.5,259.45,0.02924047]
[1737696309465,13.12966628,259.61,259.48,3.8544]
[1737696309668,9.27706628,259.65,259.45,9.30630675]
[1737696309864,9.27706628,259.65,259.45,9.27706628]
[1737696310065,9.27706628,259.61,259.49,3.8542]
[1737696310467,9.27706628,259.57,259.4,9.27706628]
[1737696310666,0.02916112,259.56,259.5,0.02896036]
[1737696310962,9.27706628,259.66,259.49,9.27706628]
[1737696311166,1.3353,259.68,259.56,3.8532]
[1737696311365,0.02898022,259.6,259.53,9.27706628]
[1737696311668,0.02898022,259.6,259.57,3.853]
[1737696312463,0.02898022,259.6,259.58,3.8529]
[1737696313068,8.022e-05,259.6,259.58,3.8529]
[1737696314371,19.09216144,259.78,259.66,3.8517]
[1737696314672,19.09216144,259.78,259.56,14.80906144]
[1737696315062,3.8506,259.74,259.65,3.8519]
[1737696315265,4.2831,259.78,259.6,14.80906144]
[1737696315470,0.02817803,259.72,259.67,0.02838683]
[1737696317074,14.80906144,259.87,259.67,0.02838683]
[1737696317373,14.80906144,259.87,259.66,1.2779]
[1737696318273,0.02753456,259.79,259.74,0.02757389]
[1737696318876,0.02753456,259.79,259.78,3.85]
[1737696320173,14.80906144,260.0,259.74,14.83663533]
[1737696320372,1.3008,260.16,259.89,14.80906144]
[1737696320674,1.3008,260.16,259.9,2.9624]
[1737696320871,3.8461,260.05,259.9,2.9624]
[1737696321070,14.80906144,260.08,259.84,14.80906144]
[1737696321271,2.9569,260.04,259.84,14.80906144]
[1737696321472,0.02699979,259.99,259.93,0.02958798]
[1737696322072,3.87399979,259.99,259.93,0.02958798]
[1737696322476,0.02699979,259.99,259.93,0.02958798]
[1737696323179,0.02699979,259.99,259.97,3.847]
[1737696324077,0.02699979,259.99,259.94,14.80906144]
[1737696324381,0.02699979,259.99,259.93,0.02958798]
[1737696325882,0.00165638,259.99,259.93,0.02958798]
[1737696326978,3.8471,259.98,259.93,0.02958798]
[1737696327179,0.00165638,259.99,259.93,0.02958798]
[1737696329277,0.00165638,259.99,259.93,3.87728798]
[1737696329581,0.00165638,259.99,259.93,0.02958798]
[1737696330885,0.00165638,259.99,259.93,3.87728798]
[1737696331783,3.8467,260.01,259.93,0.02958798]
[1737696332087,14.80906144,260.09,259.88,1.2842]
[1737696332281,14.80906144,260.05,259.83,14.80906144]
[1737696332489,14.80906144,260.05,259.88,3.8485]
[1737696332883,0.02659257,259.99,259.94,0.02881289]
[1737696333185,3.87359257,259.99,259.94,0.02881289]
[1737696333684,0.02659257,259.99,259.96,3.8473]
[1737696335087,0.00163243,259.99,259.96,3.8473]
[1737696335484,0.00163243,259.99,259.94,0.02881289]
[1737696336187,3.82233988,259.96,259.94,0.02881289]
[1737696343192,0.00163243,259.99,259.94,0.02881289]
[1737696345391,3.82833243,260.0,259.94,0.02881289]
[1737696345588,3.82833243,260.0,259.87,14.80906144]
[1737696346590,0.02719938,259.96,259.91,0.02636513]
[1737696346890,0.00719938,259.96,259.95,3.8475]
[1737696347086,14.80906144,260.11,259.91,14.83542657]
[1737696347288,14.80906144,260.11,259.91,14.80906144]
[1737696347487,14.80906144,260.11,259.99,3.8468]
[1737696347686,10.45726373,260.12,259.95,9.22666373]
[1737696348289,0.02885244,260.06,260.01,0.02452343]
[1737696348788,3.846,260.05,260.01,0.02452343]
[1737696349294,0.02885244,260.06,260.01,0.02452343]
[1737696349587,9.22666373,260.04,260.01,0.02452343]
[1737696349786,3.8467,260.0,259.9,96.91323365]
[1737696349989,9.22666373,260.04,259.9,96.91323365]
[1737696350193,9.22666373,260.04,259.92,96.91323365]
[1737696350891,0.02946886,260.01,259.95,0.02543567]
[1737696351097,0.02946886,260.01,259.95,9.2520994]
[1737696351297,0.02946886,260.01,259.99,3.8468]
[1737696351699,0.02946886,260.01,259.95,0.02543567]
[1737696351996,0.02946886,260.01,259.98,3.847]
[1737696352496,0.02946886,260.01,259.95,0.02543567]
[1737696352691,0.02946886,260.01,259.99,3.8468]
[1737696352994,0.00191588,260.01,259.99,3.8468]
[1737696353894,1.2306,260.12,259.99,3.8468]
[1737696354298,3.846,260.05,259.99,3.8468]
[1737696354903,1.2306,260.12,259.99,3.8468]
[1737696354904,3.8458,260.07,259.99,3.8468]
[1737696355100,0.02776825,260.05,259.99,3.87171625]
[1737696355892,0.02776825,260.05,260.01,3.8465]
[1737696356199,0.02776825,260.05,259.99,0.02491625]
[1737696357493,0.02776825,260.05,260.04,3.8461]
[1737696357893,1.2451,260.19,260.02,14.76146366]
[1737696358293,1.2451,260.19,260.06,14.76146366]
[1737696358491,5.0891,260.19,260.11,3.8451]
[1737696359092,0.02935385,260.18,260.12,0.02581507]
[1737696360702,3.8447,260.14,260.12,0.02581507]
[1737696361102,0.02935385,260.18,260.12,0.02581507]
[1737696361398,3.8446,260.15,260.12,0.02581507]
[1737696363594,3.8447,260.14,260.12,0.02581507]
[1737696364001,0.02935385,260.18,260.12,0.02581507]
[1737696364503,0.02935385,260.18,260.12,3.87071507]
[1737696364998,3.8443,260.17,260.12,0.02581507]
[1737696365196,0.02935385,260.18,260.12,0.02581507]
[1737696365499,3.8444,260.16,260.12,0.02581507]
[1737696365695,0.02935385,260.18,260.12,0.02581507]
[1737696366101,3.8445,260.15,260.12,0.02581507]
[1737696366697,0.02935385,260.18,260.12,0.02581507]
[1737696366698,3.8448,260.13,260.12,0.02581507]
[1737696366905,0.02935385,260.18,260.12,0.02581507]
[1737696367301,0.02935385,260.18,259.98,126.25654696]
[1737696367302,14.76146366,260.15,259.98,114.99975257]
[1737696367507,3.0745,260.14,259.98,107.03299136]
[1737696367799,3.8454,260.1,259.98,96.91323365]
[1737696368006,3.0745,260.14,259.98,96.91323365]
[1737696368402,14.76146366,260.07,260.03,0.02724645]
[1737696368706,14.76146366,260.07,259.89,3.8483]
[1737696369006,14.76146366,260.07,259.87,3.8486]
[1737696369305,14.76146366,260.07,259.85,99.91233365]
[1737696369700,0.02927464,259.99,259.93,0.02616567]
[1737696369908,2.9873,260.02,259.87,3.8485]
[1737696370114,0.02620807,259.99,259.93,0.02873199]
[1737696370911,3.8473,259.97,259.93,0.02873199]
[1737696371210,14.78767173,259.99,259.79,14.76146366]
[1737696371511,14.76146366,259.95,259.79,3.8497]
[1737696371708,14.76146366,259.95,259.75,36.4939484]
[1737696371709,14.76146366,259.95,259.75,34.59429235]
[1737696372411,14.76146366,259.95,259.75,24.4603683]
[1737696372615,0.02497532,259.88,259.83,0.02904362]
[1737696373012,3.87357532,259.88,259.83,0.02904362]
[1737696373210,0.02497532,259.88,259.83,0.02904362]
[1737696373407,3.849,259.85,259.83,0.02904362]
[1737696378017,0.02497532,259.88,259.83,0.02904362]
[1737696378512,3.8487,259.87,259.83,0.02904362]
[1737696378714,0.02497532,259.88,259.83,0.02904362]
[1737696379420,3.849,259.85,259.83,0.02904362]
[1737696381821,3.85,259.79,259.72,3.8508]
[1737696382027,9.24558175,259.81,259.64,1.6175]
[1737696382214,9.24558175,259.77,259.64,1.6175]
[1737696382816,0.02692917,259.73,259.68,0.0287683]
[1737696383122,3.8505,259.75,259.69,3.8513]
[1737696383317,0.02686237,259.73,259.68,0.02613922]
[1737696383725,0.02686237,259.73,259.7,3.8511]
[1737696384021,0.02686237,259.73,259.68,0.02613922]
[1737696384722,3.8513,259.69,259.68,0.02613922]
[1737696385615,3.87766237,259.73,259.68,0.02613922]
[1737696385819,6.237e-05,259.73,259.69,14.79924511]
[1737696386024,14.79924511,259.89,259.7,2.9424]
[1737696386822,3.8498,259.8,259.72,3.8508]
[1737696387223,0.02711477,259.79,259.73,0.02565333]
[1737696387422,0.02711477,259.79,259.73,3.87635333]
[1737696388026,0.02711477,259.79,259.73,0.02565333]
[1737696388619,3.8505,259.75,259.73,0.02565333]
[1737696390026,1.2739,259.78,259.6,2.9424]
[1737696390327,14.79924511,259.74,259.53,1.2646]
[1737696390627,2.9727,259.77,259.37,4.16]
[1737696390628,14.79924511,259.69,259.37,4.16]
[1737696390827,14.79924511,259.69,259.45,2.9175]
[1737696391329,0.02696779,259.61,259.56,0.02920419]
[1737696391626,6.779e-05,259.61,259.56,0.02920419]
[1737696391827,6.779e-05,259.61,259.59,3.8528]
[1737696393428,6.779e-05,259.61,259.57,2.9702]
[1737696393630,6.779e-05,259.61,259.56,0.02920419]
[1737696400130,6.779e-05,259.61,259.59,3.8527]
[1737696401333,6.779e-05,259.61,259.56,0.02920419]
[1737696401831,6.779e-05,259.61,259.57,3.8531]
[1737696402029,6.779e-05,259.61,259.56,0.02920419]
[1737696402733,6.779e-05,259.61,259.57,3.8532]
[1737696403530,3.85266779,259.61,259.56,0.02920419]
[1737696403934,6.779e-05,259.61,259.56,0.02920419]
[1737696404133,3.853,259.58,259.56,0.02920419]
[1737696404531,6.779e-05,259.61,259.43,14.79924511]
[1737696404731,3.8534,259.56,259.47,3.8545]
[1737696404926,1.2468,259.61,259.47,3.8545]
[1737696405334,1.2468,259.61,259.43,14.79924511]
[1737696405735,0.02840838,259.55,259.49,0.02856412]
[1737696405935,3.88200838,259.55,259.49,0.02856412]
[1737696406130,0.02840838,259.55,259.49,0.02856412]
[1737696406538,0.02840838,259.55,259.5,3.8541]
[1737696406739,0.02840838,259.55,259.5,9.26479597]
[1737696407132,3.8523,259.63,259.56,3.8532]
[1737696407331,9.26479597,259.67,259.51,1.263]
[1737696407535,9.26479597,259.71,259.54,9.26479597]
[1737696407736,3.8521,259.65,259.57,3.8531]
[1737696408438,3.87761942,259.64,259.58,0.02597679]
[1737696409134,0.02541942,259.64,259.58,0.02597679]
[1737696409339,9.26479597,259.63,259.58,0.02597679]
[1737696409731,14.84593003,259.64,259.58,0.02597679]
[1737696410132,3.8528,259.6,259.58,0.02597679]
[1737696410535,14.82051061,259.59,259.32,18.13231889]
[1737696410745,14.82051061,259.56,259.32,10.13551425]
[1737696411042,1.2747,259.58,259.34,14.82051061]
[1737696411339,1.2747,259.58,259.34,16.07881061]
[1737696411534,3.8541,259.51,259.34,16.07881061]
[1737696411744,0.02947952,259.49,259.43,0.02506334]
[1737696413739,3.8548,259.46,259.43,0.02506334]
[1737696413943,0.02947952,259.49,259.43,0.02506334]
[1737696415142,3.855,259.45,259.43,0.02506334]
[1737696418435,0.02947952,259.49,259.43,0.02506334]
[1737696419140,0.02947952,259.49,259.45,3.8548]
[1737696419339,0.02947952,259.49,259.43,0.02506334]
[1737696419841,3.855,259.45,259.43,0.02506334]
[1737696420640,3.8554,259.42,259.26,2.9794]
[1737696421645,0.02429443,259.37,259.31,0.0288509]
[1737696422143,0.02429443,259.37,259.35,3.8564]
[1737696423944,14.82051061,259.51,259.31,0.0288509]
[1737696424143,14.82051061,259.56,259.26,2.9794]
[1737696424344,14.82051061,259.56,259.29,14.82051061]
[1737696424543,3.855,259.45,259.29,14.82051061]
[1737696424749,14.82051061,259.51,259.41,3.8555]
[1737696424947,14.82051061,259.56,259.34,14.82051061]
[1737696425346,0.02725426,259.49,259.47,3.8546]
[1737696427847,0.02725426,259.49,259.45,0.02565507]
[1737696428849,3.8547,259.47,259.45,0.02565507]
[1737696429153,0.02725426,259.49,259.45,0.02565507]
[1737696429653,3.88175426,259.49,259.45,0.02565507]
[1737696429853,0.02725426,259.49,259.45,0.02565507]
[1737696430550,0.02725426,259.49,259.47,3.8546]
[1737696430948,5.426e-05,259.49,259.47,3.8546]
[1737696431346,5.426e-05,259.49,259.45,0.02565507]